Cogmind - Beta 13 @@@ ROGUE MODE // 2024.04.15 @ 23:53:57 Player: AntinDisguise Result: Destroyed by YI-UF0 with YI-UF0's Doublenader Performance ------------- Evolutions (0) 0 Regions Visited (2) 400 Robots Destroyed (19) 95 Value Destroyed (351) 351 Prototype IDs (0) 0 Alien Tech Used (0) 0 Bonus (0) 0 TOTAL SCORE: 846 Bonus ------- None Cogmind --------- Core Integrity 0/250 Matter 275/300 Energy 100/100 System Corruption 0% Temperature Cool (0) Movement Treading (240) Ox1 Location -10/Mines Parts ------- > --- POWER (1) -------- (None) > --- PROPULSION (2) --- Light Treads > --- UTILITY (2) ------ Large Storage Unit > --- WEAPON (2) ------- Hammer > --- INVENTORY (15) --- Weight Redist. System Datajack Mining Laser Peak State ------------ > --- POWER ------------ Ion Engine > --- PROPULSION ------- Wheel Wheel > --- UTILITY ---------- Small Storage Unit Visual Processing Unit > --- WEAPON ----------- Particle Gun Assault Rifle > --- INVENTORY -------- Light Treads Light Treads Grenade Launcher [Rating: 9] Favorites ----------- Power Ion Engine Engine Ion Engine Propulsion Wheel Treads Light Treads Wheel Wheel Utility Large Storage Unit Device Improved Terrain Scanner Storage Large Storage Unit Processor Visual Processing Unit Weapon Assault Rifle Energy Gun EM Pulse Gun Ballistic Gun Assault Rifle Launcher Grenade Launcher Impact Weapon Hammer Build | -11 -10 -10 ------- Run | Yrd Mat Min Slots Evolved . | . . . Power . | . . . Propulsion . | . . . Utility . | . . . Weapon . | . . . Parts Attached 25 | 6 10 9 Power 3 | 1 1 1 Engine 3 | 1 1 1 Core . | . . . Reactor . | . . . Propulsion 7 | 2 2 3 Treads 2 | . . 2 Leg . | . . . Wheel 5 | 2 2 1 Hover . | . . . Flight . | . . . Utility 4 | 1 2 1 Device 1 | . . 1 Storage 2 | 1 1 . Processor 1 | . 1 . Hackware . | . . . Protection . | . . . Artifact . | . . . Weapon 11 | 2 5 4 Energy Gun 5 | 1 3 1 Energy Cannon . | . . . Ballistic Gun 1 | 1 . . Ballistic Cannon . | . . . Launcher 3 | . 2 1 Special Weapon . | . . . Impact Weapon 2 | . . 2 Slashing Weapon . | . . . Piercing Weapon . | . . . Special Melee Weapon . | . . . Unidentified Prototypes . | . . . Parts Lost 12 | . 4 8 Power 1 | . . 1 Propulsion 6 | . 2 4 Utility 1 | . . 1 Weapon 4 | . 2 2 Highest Loss Streak 6 | . 2 6 To Critical Strikes . | . . . Average Slot Usage (%) 85 | . 81 92 Engine 13 | . 14 12 Treads 1 | . . 2 Wheel 21 | . 20 23 Device 4 | . . 10 Storage 14 | . 14 14 Processor 6 | . 8 2 Energy Gun 10 | . 9 12 Ballistic Gun 11 | . 14 8 Impact Weapon 1 | . . 4 Naked Turns . | . . . Heaviest Build 30 | 14 29 30 Greatest Support 40 | 26 26 40 Greatest Overweight (x) 2 | . 2 2 Average Overweight (x) . | . . 1 Largest Inventory Capacity 15 | 8 15 15 Average Capacity 12 | 6 10 15 Most Carried 8 | 5 7 8 Average Carried 4 | 2 3 6 Final Capacity 15 | 8 15 15 Final Carried 7 | 2 7 3 Class Distribution -------------------- 73% | Mutant 26% | Scavenger-Mutant Dominant Class ---------------- Mutant | -10/Materials Scavenger-Mutant | -10/Mines Resources | -11 -10 -10 ----------- Run | Yrd Mat Min Matter Collected 567 | 211 285 71 Remotely . | . . . Salvage Created 601 | . 483 118 Parts 47 | . 37 10 Haulers Intercepted 1 | . 1 . Recyclers Shooed 3 | . 3 . Parts Field Recycled . | . . . Retrieved Matter . | . . . Parts Self-Destructed . | . . . Prevented . | . . . Kills | -11 -10 -10 ------- Run | Yrd Mat Min Combat Hostiles Destroyed 10 | . 8 2 Guns 6 | . 5 1 AOE 4 | . 3 1 Classes Destroyed 8 | . 7 1 Worker 3 | . 3 . Builder 2 | . 2 . Tunneler 1 | . . 1 Hauler 1 | . 1 . Recycler 1 | . 1 . Watcher 1 | . 1 . Swarmer 3 | . 3 . Grunt 7 | . 5 2 Best Kill Streak 5 | . 5 2 Combat Bots Only 4 | . 4 2 Max Kills in Single Turn 2 | . 2 1 Gunslinging . | . . . Exploded 1 | . 1 1 Melee . | . . . Uniques/NPCs Destroyed . | . . . Combat | -11 -10 -10 -------- Run | Yrd Mat Min Hostile Shots Fired 78 | . 45 33 Missed 19 | . 11 8 Damage Taken 1230 | . 453 777 Core 271 | . 101 170 Absorbed by Shields . | . . . Core Remaining (%) 100 | 100 . . Volleys Fired 52 | . 42 10 Largest 2 | . 2 2 Hottest 85 | . 85 60 Shots Fired 89 | . 72 17 Gun 84 | . 67 17 Cannon . | . . . Launcher 5 | . 5 . Special . | . . . Kinetic 49 | . 42 7 Thermal 21 | . 21 . Explosive 5 | . 5 . Electromagnetic 14 | . 4 10 Robot Hit Streak 15 | . 15 12 Robot Miss Streak 3 | . 3 3 Penetration Max . | . . . Secondary Targets 3 | . 3 . Max Gunslinging Chain 1 | . 1 . Shots Hit Robots 58 | . 45 13 Core Hits 27 | . 22 5 Critical Kills . | . . . Critical Parts Destroyed . | . . . Critical Strikes . | . . . Melee Attacks 2 | . . 2 Impact 2 | . . 2 Slashing . | . . . Piercing . | . . . Sneak Attacks . | . . . Combat Hostiles . | . . . Follow-up Attacks . | . . . Damage Inflicted 1079 | . 838 241 Guns 756 | . 617 139 Cannons . | . . . Explosions 284 | . 221 63 Melee 19 | . . 19 Ramming 20 | . . 20 Kinetic 403 | . 347 56 Thermal 281 | . 218 63 Explosive 221 | . 221 . Electromagnetic 135 | . 52 83 Impact 19 | . . 19 Slashing . | . . . Piercing . | . . . Highest Corruption . | . . . Average Corruption . | . . . Corruption Purged . | . . . Corruption Blocked . | . . . Overload Shots . | . . . Overflow Damage . | . . . Projectiles . | . . . Explosions . | . . . Melee . | . . . Knockbacks . | . . . Impact . | . . . Kinetic . | . . . Secondary . | . . . Self-Inflicted Damage 74 | . 54 20 Shots 5 | . 4 1 Rammed 1 | . . 1 Targets Rammed 1 | . . 1 Kicked . | . . . Crushed . | . . . Highest Temperature 144 | . 144 72 Average Temperature 43 | . 43 47 Received Heat Transfer 231 | . 171 60 Siege Activations . | . . . Robots Corrupted . | . . . Combat Hostiles . | . . . Parts Fried . | . . . Impact Corruptions . | . . . Robots Melted . | . . . Combat Hostiles . | . . . Parts Melted . | . . . Heat Transferred 568 | . 518 50 Parts Sabotaged . | . . . Parts Stolen . | . . . Parts Stripped . | . . . Power Chain Reactions 1 | . . 1 Alert | -11 -10 -10 ------- Run | Yrd Mat Min Peak Influence 293 | . 293 117 Initial 51 | . . 51 Average 111 | . 124 102 Maximum Alert Level 1 | . 1 . Low Security (%) 95 | 100 92 100 Level 1 4 | . 7 . Level 2 . | . . . Level 3 . | . . . Level 4 . | . . . Level 5 . | . . . High Security . | . . . Max Security . | . . . Squads Dispatched 2 | . 2 . Investigation 2 | . 2 . Extermination . | . . . Reinforcement . | . . . Assault . | . . . Garrison . | . . . Intercept . | . . . Searches Triggered . | . . . Construction Impeded . | . . . Haulers Reinforced . | . . . Active Scanning Responses . | . . . Cargo Convoy Interrupts . | . . . Stealth | -11 -10 -10 --------- Run | Yrd Mat Min Distress Signals 2 | . 2 . Communications Jammed . | . . . Distress Signals . | . . . Times Spotted 20 | . 16 4 Peak Tracking Total 6 | . 6 2 Tactical Retreats 1 | . . 1 Traps | -11 -10 -10 ------- Run | Yrd Mat Min Traps Triggered 1 | . 1 . Indirectly . | . . . Trap Hack Attempts . | . . . Triggered . | . . . Disarmed . | . . . Reprogrammed . | . . . Reused . | . . . Traps Extracted . | . . . Installed . | . . . Triggered . | . . . Machines | -11 -10 -10 ---------- Run | Yrd Mat Min Machines Disabled . | . . . Max in Single Turn . | . . . Machines Repaired . | . . . Machines Dismantled . | . . . Machines Sabotaged . | . . . Overloaded Fab Kills . | . . . Hacking | -11 -10 -10 --------- Run | Yrd Mat Min Machines Accessed 6 | . 6 . Terminals 6 | . 6 . Fabricators . | . . . Repair Stations . | . . . Recycling Units . | . . . Scanalyzers . | . . . Garrison Access . | . . . Total Hacks 18 | . 18 . Successful 11 | . 11 . Failed 7 | . 7 . Catastrophic . | . . . Database Lockouts . | . . . Manual . | . . . Terminals 18 | . 18 . Fabricators . | . . . Repair Stations . | . . . Recycling Units . | . . . Scanalyzers . | . . . Garrison Access . | . . . Terminal Hacks 11 | . 11 . Record 3 | . 3 . Emergency Access Points 2 | . 2 . Alert Level 1 | . 1 . Locate Traps 1 | . 1 . Dispatch Records 2 | . 2 . Hauler Manifests 1 | . 1 . Zone Layout 1 | . 1 . Fabricator Hacks . | . . . Repair Station Hacks . | . . . Recycling Unit Hacks . | . . . Scanalyzer . | . . . Garrison Access Hacks . | . . . Unauthorized Hacks . | . . . Terminals . | . . . Fabricators . | . . . Repair Stations . | . . . Recycling Units . | . . . Scanalyzers . | . . . Garrison Access . | . . . Data Cores Recovered . | . . . Used . | . . . Hacking Detections 6 | . 6 . Full Trace Events 1 | . 1 . Feedback Events . | . . . Feedback Blocked . | . . . Robot Schematics Acquired . | . . . Robots Built . | . . . Authchips . | . . . Time . | . . . Total Robot Build Rating . | . . . Part Schematics Acquired . | . . . Parts Built . | . . . Authchips . | . . . Time . | . . . Total Part Build Rating . | . . . Parts Repaired . | . . . Time . | . . . Parts Recycled . | . . . Recycled Matter . | . . . Retrieved Matter . | . . . Retrieved Components . | . . . Parts Scanalyzed . | . . . Part Schematics Acquired . | . . . Parts Damaged . | . . . Bothacking | -11 -10 -10 ------------ Run | Yrd Mat Min Used RIF Installer . | . . . Robots Hacked . | . . . Non-combat . | . . . Combat . | . . . Robot Hacks Applied . | . . . Relay Couplers Released . | . . . Fabnet Peak Effective % . | . . . Robots Rewired . | . . . Allies Hacked . | . . . Hacks Repelled . | . . . Allies | -11 -10 -10 -------- Run | Yrd Mat Min Total Allies 3 | . . 3 Largest Group 3 | . . 3 Highest-Rated Group 40 | . . 40 Highest-Rated Ally 16 | . . 16 Total Orders . | . . . Ally Attacks . | . . . Total Damage . | . . . Kills . | . . . Allies Corrupted . | . . . Allies Melted . | . . . Intel | -11 -10 -10 ------- Run | Yrd Mat Min Robot Analysis Total . | . . . Derelict Logs Recovered 1 | . . 1 Drone Launches . | . . . Drone Recoveries . | . . . Exploration | -11 -10 -10 ------------- Run | Yrd Mat Min Turns Passed 1156 | 42 687 427 Spaces Moved 904 | 35 520 349 Core 7 | 7 . . Treads 14 | . . 14 Legs . | . . . Wheels 883 | 28 520 335 Hover . | . . . Flight . | . . . Fastest Speed 50 | 50 80 95 Average Speed 96 | 82 95 99 Slowest Speed 160 | 90 110 160 Overloaded Moves . | . . . Propulsion Burnouts . | . . . Robots Hopped . | . . . Cave-ins Triggered . | . . . Exploration Rate (%) 48 | 3 68 75 Regions Visited 2 Branch Regions 1 Pre-discovered Areas 1 | . . 1 Known Exits Taken . | . . . Unknown Exits Taken 2 | 1 1 . Scrap Searched 1 | . . 1 Spaces Dug . | . . . Terrain Destroyed 43 | . 37 6 Melee . | . . . Projectile . | . . . AOE 43 | . 37 6 Terrain Rammed . | . . . Walls Destroyed . | . . . Machines Disabled . | . . . Actions | -11 -10 -10 --------- Run | Yrd Mat Min Total 1095 | 48 639 408 Wait 83 | . 52 31 Move 902 | 34 519 349 Hop . | . . . Pick Up 24 | 8 13 3 Fast Attach . | . . . Attach 17 | 6 5 6 Detach . | . . . Swap 8 | . 5 3 Drop 6 | . 3 3 Fire 52 | . 42 10 Melee 2 | . . 2 Ram 1 | . . 1 Kick . | . . . Crush . | . . . Escape Stasis . | . . . Rewire . | . . . Trap . | . . . Miscellaneous . | . . . Route ------- -11/Scrapyard -10/Materials (discovered 4 exits: [*Mat x2] / [*Min] / [*Sub]) -10/Mines (discovered 1 exit: [*Mat]) History --------- Turn | Location | Event 19 | -11/Scrapyard | Discovered new exit (range 15) 43 | -11/Scrapyard | Entered Materials 262 | -10/Materials | Discovered new exit (range 7) 308 | -10/Materials | Build established: Mutant 447 | -10/Materials | Discovered new exit (range 13) 617 | -10/Materials | Discovered new exit (range 6) 673 | -10/Materials | Discovered new exit (range 18) 730 | -10/Materials | Entered Mines 735 | -10/Mines | Core integrity fell below 50% 879 | -10/Mines | Discovered new exit (range 11) 1008 | -10/Mines | Assisted by bots powering up and referring to "LRC-V3" 1089 | -10/Mines | Build established: Scavenger-Mutant 1116 | -10/Mines | Core integrity fell below 20% 1142 | -10/Mines | Lost 3 allies 1144 | -10/Mines | Lost 6 parts (1p2n1u2w) 1157 | -10/Mines | Destroyed by YI-UF0 with YI-UF0's Doublenader Last Messages --------------- Acquired 5 matter. Trooper 1a: "Hello LRC-V3. What is your command?" Mercenary 1a: "Hello LRC-V3. What is your command?" Trooper 1b: "Hello LRC-V3. What is your command?" Seismic Survey Station disabled. Grenade Launcher destroyed. Mercenary 1a destroyed. Ion Engine destroyed. Trooper 1a destroyed. The unstable cave ceiling collapses. YI-UF0: "BAROOM!" Trooper 1b destroyed. YI-UF0 mumbles something. The unstable cave ceiling collapses. Imp. Terrain Scanner destroyed. EM Pulse Gun destroyed. Wheel destroyed. The unstable cave ceiling collapses. YI-UF0 mumbles something. Lgt. Treads destroyed. Map ----- +----------------------------------------------------+ | | | | | | | | | | | | | | | | | | | | | | | | | | | ?????????????????????????????#????????????????? | | ?????????????????????????????????????#????????? | | ????????????????????????????????????#?????????? | | ??????????????????????????#??????????#????????? | | ??????????????#?????#?????#????????????#??????? | | ???????????????????????????????????????????#??? | | ????####???????####?#??#?????????????????#????? | | ?? #? ?????## ##??????????#???????????????? | | ?? ? ###### #########?????#???????????? | | ?? ! ## # # # ###?????????#?????? | | ? # * ###??#??????????? | | ? !=# g #??#??????????? | | | # @ ######????????? | | ??# =! ## ## ##???????? | | ?# =% # #####???? | | ??# " # # ##?#? | | ??###### # ## = # ### #??? | | ??????# # #### ######## #??? | | ??????#### #??# ##?????## ##??? | | ?????????### ##??# #???#??# #???? | | ???????????## ##?#?# #????#?# ##??? | | ????????????###### ###???# #??????## ##?? | | ?????????????????###?#???# ##??????## #?? | | ?????????????????????#???# ##??#???## #?? | | ??????????????????#????### #???????# #?? | | ????#???????????????##### ##??????## ##?? | | ????????????????????# ###??##?# #??? | | ?????#??????????????# ##????# #??? | | ????????????????????# #????# #??? | | ???????????????#????#### #????# #??? | | ??????????????????????# #????# #??? | | ?????????????????????## ###### #??? | | ??????????????#?????## #??? | | #??#???????#?????#??# ## #??? | | #??????????????????# ## #### ########??? | | ???????##?????????# ########??# #?????????? | | ?????? ##?????#?## #?????????# #?????????? | +----------------------------------------------------+ Best States ------------- Heat Dissipation 25 Energy Generation 10 Energy Capacity 250 Matter Stores 300 Matter Capacity 300 Sight Range 18 Terrain Scan Range 16 Terrain Scan Density 10 Evasion (%) 44 Recoil Reduction 2 Item Schematics ----------------- None Robot Schematics ------------------ None Fabricated ------------ Nothing Alien Tech Used ----------------- None Achievements -------------- None Challenges ------------ None Game ------ Seed DerelictPortableMeganuke Manual? 0 Play Time 00:14:42 Cumulative 17.7 hours Start 2024.04.15 @ 23:42:04 End 2024.04.15 @ 23:53:57 Sessions 1 Manual Loads 0 Difficulty Rogue Special Mode None Game No. 42 Rogue 40 Adventurer 2 Explorer 0 Win Type - Total 0 Types 0/0/0/0/0/0/0/0/0 Lore% 17 Gallery% 26 Achievement% 19 Wizard Run 0 Options --------- Layout 1 ASCII 0 Keyboard 0 Movement Mouse Keybinds 0 Fullscreen 1 Font 16/SmallcapsGlow Map View 27x19 Zoom Use 100% Tactical HUD 0 Map Filters NONE Filters NONE Steam 1 RUN: 0acc9506-f189-4e5b-920d-8b7e451d58a7